bitfinex/quotes_ETHUSD_20251127
["timestamp","ask_amount","ask_price","bid_price","bid_amount"]
[1764253059433,11.00481606,2994.0,2993.9,0.001]
[1764253059636,11.21581606,2994.0,2993.9,0.001]
[1764253060539,11.66941606,2994.0,2993.9,0.001]
[1764253060740,11.56941606,2994.0,2993.9,0.001]
[1764253060925,11.66941606,2994.0,2993.9,0.001]
[1764253061118,10.77079496,2994.0,2993.9,0.001]
[1764253061946,10.00619496,2994.0,2993.9,0.001]
[1764253062145,10.21719496,2994.0,2993.9,0.001]
[1764253062347,9.35777168,2994.0,2993.9,0.001]
[1764253062642,10.08336579,2994.0,2993.9,0.001]
[1764253062821,9.35777168,2994.0,2993.9,0.001]
[1764253063028,10.08336579,2994.0,2993.9,0.001]
[1764253064019,13.68713365,2994.0,2993.9,0.001]
[1764253064221,15.07075475,2994.0,2993.9,0.001]
[1764253064439,12.02058689,2994.0,2993.9,0.001]
[1764253065045,5.79685832,2994.0,2993.9,0.4802]
[1764253065241,5.52285832,2994.0,2993.9,0.9652]
[1764253065428,5.52285832,2994.0,2993.9,0.001]
[1764253065429,9.79447168,2994.0,2993.9,0.001]
[1764253066450,9.34087168,2994.0,2993.9,0.001]
[1764253066649,8.86287168,2994.0,2993.9,0.4802]
[1764253067834,8.86287168,2994.0,2993.9,0.001]
[1764253068131,9.34087168,2994.0,2993.9,0.001]
[1764253068663,10.06646579,2994.0,2993.9,0.001]
[1764253068863,10.62006579,2994.0,2993.9,0.001]
[1764253070847,10.52006579,2994.0,2993.9,0.001]
[1764253071212,13.67223365,2994.0,2993.9,0.001]
[1764253071849,14.57085475,2994.0,2993.9,0.001]
[1764253074185,11.20968689,2994.0,2993.9,0.001]
[1764253074345,11.06708689,2994.0,2993.9,0.001]
[1764253075693,0.6063,2993.9,2992.7,0.485]
[1764253075999,0.6063,2993.9,2992.7,3.53516786]
[1764253076000,0.1,2993.6,2992.7,3.53516786]
[1764253076207,0.52325832,2993.5,2992.9,3.05016786]
[1764253076499,0.52325832,2993.4,2993.1,3.05016786]
[1764253076666,0.31225832,2993.3,2993.1,3.05016786]
[1764253076861,0.31225832,2993.2,2993.1,3.05016786]
[1764253077294,0.31225832,2993.2,2993.1,3.52936786]
[1764253077498,0.31225832,2993.2,2993.1,0.9642]
[1764253079701,0.31225832,2993.2,2993.1,0.4792]
[1764253080420,0.31225832,2993.2,2992.6,3.47143343]
[1764253080421,4.13116437,2993.2,2992.6,3.47143343]
[1764253080575,4.13116437,2993.2,2992.7,3.53516786]
[1764253080576,0.31225832,2993.1,2992.7,3.53516786]
[1764253080913,0.52325832,2993.0,2992.7,3.53516786]
[1764253081100,0.31225832,2992.9,2992.8,0.485]
[1764253081478,0.31225832,2992.9,2992.8,0.9642]
[1764253081679,0.79025832,2992.9,2992.6,0.12987]
[1764253081880,0.31225832,2992.8,2992.6,0.485]
[1764253082109,0.31225832,2992.7,2992.6,0.485]
[1764253082309,0.79025832,2992.7,2991.8,4.54392978]
[1764253082550,0.79025832,2992.7,2991.2,0.1826]
[1764253082551,0.72559411,2992.0,2991.2,0.1826]
[1764253082749,0.9965,2991.9,2991.2,0.1826]
[1764253082910,0.4536,2991.8,2991.2,0.1826]
[1764253083245,0.72559411,2992.0,2991.2,0.1826]
[1764253083246,0.1,2992.1,2991.8,0.4792]
[1764253083407,0.211,2992.0,2991.8,0.4792]
[1764253083739,0.211,2992.0,2991.4,0.485]
[1764253083740,3.82035769,2991.9,2991.4,0.485]
[1764253084239,1.00428999,2992.0,2991.2,0.1826]
[1764253084441,1.00428999,2992.0,2991.3,0.485]
[1764253084442,0.211,2991.8,2991.3,0.485]
[1764253085312,0.211,2991.8,2991.7,0.4792]
[1764253085723,0.211,2991.8,2991.7,0.9642]
[1764253086264,4.34631825,2992.2,2991.7,0.9642]
[1764253086436,0.72559411,2992.7,2992.1,0.6618]
[1764253086621,0.211,2992.6,2991.6,3.34269287]
[1764253086821,0.7646,2992.6,2991.7,0.485]
[1764253087349,0.1,2992.5,2991.7,0.485]
[1764253087511,0.6646,2992.6,2991.7,0.485]
[1764253087849,0.72559411,2992.4,2991.7,0.485]
[1764253088419,0.72559411,2992.4,2991.7,3.82756048]
[1764253088740,0.211,2992.3,2991.7,3.82756048]
[1764253088946,0.211,2992.3,2991.8,0.485]
[1764253089143,0.72559411,2992.4,2991.8,0.485]
[1764253089345,0.211,2992.3,2991.8,0.485]
[1764253090061,0.211,2992.3,2992.2,0.4773]
[1764253090263,0.211,2992.3,2991.8,3.34244137]
[1764253090446,7.36746966,2992.3,2991.6,0.4937]
[1764253090836,7.36746966,2992.3,2991.6,3.83637379]
[1764253091036,4.27852894,2992.3,2992.2,0.4879]
[1764253091234,0.93659411,2992.3,2992.2,0.6813]
[1764253091434,4.06750501,2992.3,2992.2,0.4879]
[1764253091652,4.27850501,2992.3,2992.2,0.4879]
[1764253092267,0.93659411,2992.3,2992.2,0.9806]
[1764253092770,3.34085765,2993.3,2992.2,0.9806]
[1764253092946,0.211,2993.2,2992.5,0.4879]
[1764253093149,0.211,2993.1,2992.5,0.4879]
[1764253093348,0.211,2993.1,2992.5,0.9806]
[1764253093867,3.34073874,2993.4,2993.0,0.4879]
[1764253094169,0.211,2993.3,2992.6,0.4927]
[1764253094467,0.72559411,2993.1,2992.0,0.1934]
[1764253094670,0.31046923,2993.0,2992.2,0.4927]
[1764253094872,0.52146923,2992.9,2992.2,0.4927]
[1764253095040,0.31046923,2992.8,2992.2,0.4927]
[1764253095239,0.211,2992.9,2992.2,0.4927]
[1764253095240,0.31046923,2992.7,2992.2,0.4927]
[1764253095571,0.31046923,2992.6,2992.2,0.4927]
[1764253095758,0.52146923,2992.5,2992.2,0.4927]
[1764253095948,0.31046923,2992.4,2992.2,0.4927]
[1764253096469,0.31046923,2992.4,2992.3,0.4879]
[1764253096853,0.31046923,2992.4,2992.3,0.9806]
[1764253097165,0.31046923,2992.4,2992.0,3.5356061]
[1764253097464,0.31046923,2992.3,2992.0,4.0283061]
[1764253097679,0.211,2992.5,2992.0,4.0283061]
[1764253097879,0.211,2992.5,2992.0,0.1934]
[1764253097880,3.65236864,2992.4,2992.0,0.1934]
[1764253098185,0.31056942,2992.3,2992.0,0.1934]
[1764253098345,4.02089649,2992.5,2992.0,0.1934]
[1764253098346,0.31056942,2992.2,2992.0,0.1934]
[1764253098550,0.52156942,2992.1,2992.0,0.6861]
[1764253098970,0.52156942,2992.1,2992.0,1.174]
[1764253099880,0.52156942,2992.1,2992.0,0.4879]
[1764253101051,3.8637037,2992.1,2992.0,0.4879]
[1764253101253,0.52156942,2992.1,2992.0,0.4879]
[1764253102778,0.52156942,2992.1,2992.0,0.9806]
[1764253104083,0.31056942,2992.1,2992.0,0.9806]
[1764253104288,0.52156942,2992.1,2992.0,0.9806]
[1764253105568,0.52156942,2992.1,2992.0,0.9816]
[1764253105755,0.31056942,2992.1,2992.0,0.9816]
[1764253105960,0.52156942,2992.1,2992.0,0.9816]
[1764253106159,0.52076942,2992.1,2992.0,0.9816]
[1764253106884,0.30976942,2992.1,2992.0,0.9816]
[1764253107288,0.52076942,2992.1,2992.0,0.9816]
[1764253108655,0.30976942,2992.1,2992.0,0.9816]
[1764253108860,0.52076942,2992.1,2992.0,0.9816]
[1764253109369,0.30976942,2992.1,2992.0,7.3760097]
[1764253110072,0.30976942,2992.1,2992.0,4.03376372]
[1764253110465,0.30976942,2992.1,2992.0,7.40943215]
[1764253110660,0.211,2992.2,2992.0,4.03376372]
[1764253110868,0.211,2992.2,2992.1,1.174]
[1764253111388,0.72559411,2992.6,2992.1,1.174]
[1764253111562,0.211,2992.5,2992.1,1.174]
[1764253113209,3.34179922,2992.4,2992.1,1.174]
[1764253113516,0.211,2992.3,2992.1,1.174]
[1764253113903,0.72559411,2992.6,2992.3,0.4879]
[1764253114090,3.34351763,2992.7,2992.5,0.4879]
[1764253114290,3.34351763,2992.7,2992.6,0.4879]
[1764253114491,3.55451763,2992.7,2992.6,0.4879]
[1764253114811,3.55451763,2992.7,2992.3,0.4927]
[1764253114812,0.002,2992.7,2992.3,0.4927]
[1764253115018,3.55446841,2992.7,2992.3,0.4927]
[1764253116122,6.89593682,2992.7,2992.3,0.4927]
[1764253116423,6.89593682,2992.7,2992.1,0.1934]
[1764253116424,7.36413682,2992.7,2992.1,4.02822407]
[1764253116890,4.02266841,2992.7,2992.1,4.02822407]
[1764253118191,0.78020808,2992.6,2992.1,0.1934]
[1764253118413,0.31200808,2992.5,2992.1,0.1934]
[1764253118716,0.4726,2992.2,2992.0,0.001]
[1764253118923,0.31200808,2992.1,2992.0,0.001]
[1764253119415,0.31200808,2992.1,2992.0,3.34324598]
[1764253119611,0.31200808,2992.1,2992.0,3.83114598]
[1764253120018,0.31200808,2992.1,2992.0,0.4889]
[1764253120595,0.76760808,2992.1,2992.0,0.001]
[1764253121818,0.31200808,2992.1,2992.0,0.001]
[1764253122003,0.31200808,2992.1,2992.0,0.4977]
[1764253123092,0.31200808,2992.1,2992.0,0.9927]
[1764253124190,0.31200808,2992.1,2992.0,4.33494598]
[1764253125026,0.31200808,2992.1,2992.0,0.4977]
[1764253125220,0.76760808,2992.1,2992.0,0.001]
[1764253125420,1.23580808,2992.1,2992.0,0.001]
[1764253125918,0.76760808,2992.1,2992.0,0.001]
[1764253126322,1.23580808,2992.1,2992.0,0.001]
[1764253126527,4.57794236,2992.1,2992.0,0.001]
[1764253128717,5.40353647,2992.1,2992.0,0.001]
[1764253129959,5.40273647,2992.1,2992.0,0.001]
[1764253130924,5.04553647,2992.1,2992.0,0.001]
[1764253131439,5.51373647,2992.1,2992.0,0.001]
[1764253134968,5.61373647,2992.1,2992.0,0.001]
[1764253137676,5.04553647,2992.1,2992.0,0.001]
[1764253139181,4.58993647,2992.1,2992.0,0.4977]
[1764253140079,4.37893647,2992.1,2992.0,0.4977]
[1764253140254,4.58993647,2992.1,2992.0,0.4977]
[1764253141179,4.37893647,2992.1,2992.0,0.4977]
[1764253141392,1.03680219,2992.1,2992.0,0.9927]
[1764253141677,5.04553647,2992.1,2992.0,0.001]
[1764253142393,0.31120808,2992.1,2992.0,0.9927]
[1764253142698,4.78814236,2992.1,2992.0,0.001]
[1764253142899,4.79014236,2992.1,2992.0,0.001]
[1764253143101,4.32194236,2992.1,2992.0,0.001]
[1764253143476,4.79014236,2992.1,2992.0,0.001]
[1764253146905,4.32194236,2992.1,2992.0,0.001]
[1764253148805,4.79014236,2992.1,2992.0,0.001]
[1764253149497,8.7858508,2992.1,2992.0,0.001]
[1764253149689,8.8858508,2992.1,2992.0,0.001]
[1764253150612,4.83653647,2992.1,2992.0,0.001]
[1764253150807,4.38093647,2992.1,2992.0,0.4849]
[1764253151304,4.59193647,2992.1,2992.0,0.4849]
[1764253152078,1.03880219,2992.1,2992.0,0.4849]
[1764253152409,4.59193647,2992.1,2992.0,0.4849]
[1764253152577,4.59193647,2992.1,2992.0,0.001]
[1764253152774,5.08033647,2992.1,2992.0,0.001]
[1764253152975,4.38093647,2992.1,2992.0,0.4849]
[1764253153175,4.59193647,2992.1,2992.0,0.4849]
[1764253153577,4.59113647,2992.1,2992.0,0.4849]
[1764253155283,5.55423647,2992.1,2992.0,0.001]
[1764253155478,5.07953647,2992.1,2992.0,0.001]
[1764253155679,5.17953647,2992.1,2992.0,0.001]
[1764253155880,5.55423647,2992.1,2992.0,0.001]
[1764253156381,5.65423647,2992.1,2992.0,0.001]
[1764253158797,6.15323647,2992.1,2992.0,0.001]
[1764253159803,7.04954219,2992.1,2992.0,0.001]
[1764253160487,6.94954219,2992.1,2992.0,0.001]
[1764253160687,7.04954219,2992.1,2992.0,0.001]
[1764253161907,6.15323647,2992.1,2992.0,0.001]
[1764253163598,7.04954219,2992.1,2992.0,0.001]
[1764253164295,6.36384219,2992.1,2992.0,0.001]
[1764253164497,7.04954219,2992.1,2992.0,0.001]
[1764253164698,6.83854219,2992.1,2992.0,0.001]
[1764253164918,7.04954219,2992.1,2992.0,0.001]
[1764253165618,6.83854219,2992.1,2992.0,0.001]
[1764253165824,7.04954219,2992.1,2992.0,0.001]
[1764253166701,5.46753647,2992.1,2992.0,0.001]
[1764253166902,5.19013647,2992.1,2992.0,0.001]
[1764253167834,5.67853647,2992.1,2992.0,0.001]
[1764253168404,6.15323647,2992.1,2992.0,0.001]
[1764253169524,7.04954219,2992.1,2992.0,0.001]
[1764253172938,6.15323647,2992.1,2992.0,0.001]
[1764253174669,10.40061332,2992.1,2992.0,0.001]
[1764253176369,9.20748531,2992.1,2992.0,0.001]
[1764253176575,5.36753647,2992.1,2992.0,0.001]
[1764253176873,3.96554236,2992.1,2992.0,0.9839]
[1764253177178,4.48013647,2992.1,2992.0,0.9839]
[1764253177356,3.86474236,2992.1,2992.0,0.9839]
[1764253177560,4.59033647,2992.1,2992.0,0.9839]
[1764253177750,3.86474236,2992.1,2992.0,0.9839]
[1764253178070,4.59033647,2992.1,2992.0,0.9839]
[1764253178266,4.37933647,2992.1,2992.0,0.9839]
[1764253178441,4.59033647,2992.1,2992.0,0.001]
[1764253178642,4.59033647,2992.1,2992.0,0.4849]
[1764253183281,4.59033647,2992.1,2992.0,0.9456]
[1764253184380,4.59033647,2992.1,2992.0,0.4849]
[1764253185677,5.04933647,2992.1,2992.0,0.001]
[1764253185849,8.55498531,2992.1,2992.0,0.001]
[1764253186051,9.55527603,2992.1,2992.0,0.001]
[1764253186371,9.68917822,2992.1,2992.0,0.001]
[1764253188189,8.7888875,2992.1,2992.0,0.001]
[1764253188485,9.98201551,2992.1,2992.0,0.001]
[1764253189767,9.98201551,2992.1,2991.7,0.001]
[1764253189768,1.13109811,2992.0,2991.7,0.001]
[1764253189993,9.46050082,2991.8,2991.7,0.001]
[1764253190193,10.41943605,2991.8,2991.7,0.001]
[1764253190494,14.40820546,2991.8,2991.7,0.001]
[1764253190709,0.1,2990.6,2989.3,1.20154447]
[1764253190999,0.72559411,2990.4,2990.1,0.1949]
[1764253191200,0.52060808,2990.3,2989.2,0.31473885]
[1764253191353,0.30960808,2990.2,2990.1,0.1949]
[1764253191790,0.30960808,2990.2,2990.1,0.6572]
[1764253191997,0.30960808,2990.2,2990.1,0.4623]
[1764253192160,0.30960808,2990.2,2990.0,0.0008]
[1764253192161,0.76860808,2990.2,2990.0,0.0008]
[1764253192499,0.211,2990.3,2990.0,0.0008]
[1764253192500,3.86497783,2990.1,2990.0,0.4615]
[1764253192872,3.86497783,2990.1,2990.0,0.4631]
[1764253193199,3.86497783,2990.1,2990.0,0.0008]
[1764253193200,5.04957194,2990.1,2990.0,0.0008]
[1764253193498,1.24720219,2990.1,2990.0,0.9238]
[1764253193698,1.70790219,2990.1,2990.0,0.9238]
[1764253193996,5.05227194,2990.1,2990.0,0.4631]
[1764253195418,0.77030808,2990.1,2990.0,0.4631]
[1764253195616,3.86597783,2990.1,2990.0,0.9248]
[1764253195821,3.86597783,2990.1,2990.0,0.4641]
[1764253196187,3.65397783,2990.1,2990.0,0.4641]
[1764253196488,3.86597783,2990.1,2990.0,0.9248]
[1764253196883,0.30960808,2990.1,2990.0,0.9248]
[1764253197081,3.86597783,2990.1,2990.0,0.4641]
[1764253197512,3.86597783,2990.1,2990.0,0.9248]
[1764253197712,3.86597783,2990.1,2990.0,0.4641]
[1764253199519,4.69157194,2990.1,2990.0,0.0018]
[1764253199722,0.3106751,2990.1,2990.0,0.9248]
[1764253199921,0.31070306,2990.1,2990.0,0.9248]
[1764253200217,0.31070306,2990.3,2990.0,0.9248]
[1764253200417,0.31070306,2990.2,2990.1,0.6556]
[1764253200617,0.31070306,2990.3,2990.1,0.1949]
[1764253200920,3.86696096,2990.2,2990.1,0.6556]
[1764253201295,0.52190306,2990.2,2990.1,0.6556]
[1764253201494,0.52190306,2990.2,2990.1,1.1179]
[1764253201495,0.31070306,2990.2,2990.1,1.1179]
[1764253201715,0.72559411,2990.6,2990.1,1.1179]
[1764253201894,0.52270306,2990.5,2990.2,0.4607]
[1764253202095,0.31070306,2990.4,2990.1,0.6572]
[1764253202326,0.31070306,2990.3,2990.1,1.1179]
[1764253202620,0.31070306,2990.2,2990.1,0.1949]
[1764253202824,3.34417921,2990.3,2990.1,0.6572]
[1764253203028,0.31070306,2990.2,2990.1,0.1949]
[1764253203712,0.31070306,2990.2,2990.1,0.6572]
[1764253203896,0.31070306,2990.2,2990.1,1.1179]
[1764253204097,0.31070306,2990.2,2990.1,4.17214884]
[1764253204299,0.72559411,2990.8,2990.1,7.51651859]
[1764253204524,0.3104102,2990.7,2990.4,3.05424884]
[1764253204727,3.52588025,2991.4,2990.6,3.05424884]
[1764253204728,3.34313373,2991.3,2990.6,3.05424884]
[1764253204918,1.00457247,2991.4,2990.4,3.05424884]
[1764253204919,3.86560278,2991.2,2991.0,0.4623]
[1764253205117,3.34235769,2991.9,2991.3,0.1826]
[1764253205326,5.34032572,2992.0,2991.6,3.05424884]
[1764253205327,0.52247835,2991.8,2991.6,3.05424884]
[1764253205529,0.31047835,2991.7,2991.6,3.05424884]
[1764253205732,1.998,2992.0,2991.7,0.923]
[1764253205898,3.8649086,2991.9,2991.7,0.4623]
[1764253206102,0.31055091,2991.8,2991.7,0.4623]
[1764253206304,0.31055091,2991.8,2991.7,0.4607]
[1764253206503,0.52255091,2991.8,2991.7,0.923]
[1764253206719,0.52255091,2991.9,2991.7,0.923]
[1764253206924,1.998,2992.0,2991.6,0.405504]
[1764253207128,1.998,2992.0,2991.9,0.4623]
[1764253207634,1.998,2992.0,2991.9,0.923]
[1764253208907,1.998,2992.0,2991.9,4.26535769]
[1764253209709,1.998,2992.0,2991.9,8.34734049]
[1764253209904,1.998,2992.0,2991.9,8.75284449]
[1764253210851,1.998,2992.0,2991.9,4.26535769]
[1764253211720,1.998,2992.0,2991.9,0.923]
[1764253211921,1.998,2992.0,2991.5,4.0819828]
[1764253211922,5.80287024,2992.0,2991.5,0.4978]
[1764253212233,0.3101845,2991.9,2991.3,3.52561137]
[1764253212433,0.3101845,2991.9,2991.3,4.02341137]
[1764253213358,0.3101845,2991.9,2991.8,0.4907]
[1764253213716,0.5221845,2991.9,2991.8,0.4907]
[1764253215758,2.212,2992.0,2991.8,0.9885]
[1764253215948,2.212,2992.0,2991.9,0.4907]
[1764253216454,2.212,2992.0,2991.9,0.9885]
[1764253216859,2.212,2992.0,2991.8,3.34246941]
[1764253216860,2.6746,2992.0,2991.3,3.5255954]
[1764253217026,2.212,2992.0,2991.3,3.5255954]
[1764253217227,2.212,2992.0,2991.4,0.4978]
[1764253217750,5.55426741,2992.0,2991.4,3.84063553]
[1764253217984,6.44409957,2992.0,2991.4,3.84063553]
[1764253218685,3.10183216,2992.0,2991.4,3.84063553]
[1764253218888,3.10183216,2992.0,2991.5,0.4978]
[1764253219089,6.44410467,2992.0,2991.5,0.4978]
[1764253219679,6.44410467,2992.0,2991.5,3.84053603]
[1764253219881,3.10183216,2992.0,2991.5,3.84053603]
[1764253220193,3.10183216,2992.0,2991.6,0.4978]
[1764253220494,2.212,2992.0,2991.6,0.4978]
[1764253220891,5.5542469,2992.0,2991.6,0.4978]
[1764253221096,2.212,2992.0,2991.5,3.34278869]
[1764253221261,2.212,2992.0,2991.5,3.84058869]
[1764253221463,5.55425439,2992.0,2991.5,0.4978]
[1764253221677,6.89749386,2992.0,2991.3,3.52559309]
[1764253221959,1.67369196,2991.9,2991.3,0.1826]
[1764253222164,0.30979785,2991.8,2991.3,0.1826]
[1764253222464,0.76319785,2991.8,2991.1,3.34316477]
[1764253222662,0.30979785,2991.7,2991.1,3.52576477]
[1764253222884,0.212,2991.6,2991.1,3.52576477]
[1764253223300,0.212,2991.6,2991.1,4.02356477]
[1764253223700,0.212,2991.6,2990.8,6.687174]
[1764253224009,0.6654,2991.6,2990.8,7.184974]
[1764253224210,0.6654,2991.6,2990.9,0.4978]
[1764253225015,0.6646,2991.6,2990.9,0.4978]
[1764253226100,0.3102959,2991.5,2991.0,3.34336342]
[1764253226801,0.4626,2991.1,2990.5,3.84172242]
[1764253226984,0.3664,2991.0,2990.5,3.84172242]
[1764253227177,0.212,2990.9,2990.5,3.84172242]
[1764253227384,0.212,2990.9,2990.6,0.4978]
[1764253227684,0.212,2990.9,2990.8,0.4907]
[1764253229311,0.52268226,2990.9,2990.8,0.4907]
[1764253229505,0.212,2990.9,2990.8,0.4907]
[1764253230108,0.52268226,2990.9,2990.8,3.834287]
[1764253230414,0.52268226,2990.9,2990.8,4.332087]
[1764253231611,0.98528226,2990.9,2990.3,0.4978]
[1764253231811,0.31068226,2990.8,2990.3,0.4978]
[1764253231992,0.31068226,2990.7,2990.4,3.34403424]
[1764253232188,0.6746,2990.9,2990.4,6.68806848]
[1764253232189,0.212,2990.9,2990.4,6.68806848]
[1764253232511,0.31138896,2990.8,2990.6,0.4907]
[1764253232710,0.31138896,2990.7,2990.6,0.4907]
[1764253233332,1.61408269,2990.7,2990.1,0.1959]
[1764253233514,0.1544,2990.5,2990.1,0.1959]
[1764253233712,0.52338896,2990.4,2990.1,0.1959]
[1764253233909,0.31138896,2990.3,2990.1,0.1959]
[1764253234239,0.31138896,2990.2,2990.1,0.1959]
[1764253234629,0.31138896,2990.2,2990.1,0.6866]
[1764253235149,0.31138896,2990.2,2990.1,0.6768]
[1764253235448,0.52338896,2990.2,2990.1,1.1746]
[1764253236071,0.52338896,2990.2,2990.1,0.6768]
[1764253236273,0.52338896,2990.2,2990.1,0.4917]
[1764253236417,0.52338896,2990.2,2990.1,0.001]
[1764253236418,0.98598896,2990.2,2990.1,0.001]
[1764253237517,1.43938896,2990.2,2990.1,0.001]
[1764253237720,0.52338896,2990.2,2990.1,0.4917]
[1764253238343,4.78364686,2990.2,2990.1,0.001]
[1764253238539,5.59642434,2990.2,2990.1,0.001]
[1764253239546,6.32201845,2990.2,2990.1,0.001]
[1764253240155,6.11001845,2990.2,2990.1,0.001]
[1764253240453,5.86861845,2990.2,2990.1,0.001]
[1764253241122,5.05584097,2990.2,2990.1,0.001]
[1764253241519,1.71158307,2990.2,2990.1,0.001]
[1764253241723,1.24898307,2990.2,2990.1,0.5001]
[1764253242336,0.31138896,2990.2,2990.1,0.5001]
[1764253242542,0.52338896,2990.2,2990.1,0.5001]
[1764253243230,0.78328896,2990.2,2990.1,0.001]
[1764253243433,0.99528896,2990.2,2990.1,0.001]
[1764253243840,0.31138896,2990.2,2990.1,1.1386]
[1764253244046,0.52338896,2990.2,2990.1,1.1386]
[1764253244453,0.31138896,2990.2,2990.1,4.02866975]
[1764253244652,0.31138896,2990.2,2990.1,4.51641344]
[1764253244966,0.31093211,2990.2,2990.1,4.51641344]
[1764253245173,0.31093211,2990.6,2990.1,4.51641344]
[1764253245459,0.4719,2990.2,2990.1,0.001]
[1764253245652,1.24573044,2990.2,2990.1,0.001]
[1764253245863,1.34573044,2990.2,2990.1,0.001]
[1764253246439,5.31558245,2990.2,2990.1,0.001]
[1764253246659,6.18155558,2990.2,2990.1,0.001]
[1764253246830,6.28155558,2990.2,2990.1,0.001]
[1764253247571,6.18155558,2990.2,2990.1,0.001]
[1764253247730,6.28155558,2990.2,2990.1,0.001]
[1764253248247,6.18155558,2990.2,2990.1,0.001]
[1764253248761,6.18075558,2990.2,2990.1,0.001]
[1764253249125,6.39375558,2990.2,2990.1,0.001]
[1764253249753,6.49375558,2990.2,2990.1,0.001]
[1764253250928,6.39375558,2990.2,2990.1,0.001]
[1764253251265,0.76633044,2990.2,2990.1,0.001]
[1764253251575,0.52393211,2990.2,2990.1,0.5001]
[1764253252350,0.31093211,2990.2,2990.1,0.6758]
[1764253252554,0.31093211,2990.2,2990.1,1.1301]
[1764253252555,0.52393211,2990.2,2990.1,1.1301]
[1764253252732,0.31093211,2990.2,2990.1,1.1301]
[1764253252933,0.52393211,2990.2,2990.1,1.1301]
[1764253253256,4.34009001,2990.2,2990.1,0.001]
[1764253253457,0.99583211,2990.2,2990.1,0.001]
[1764253253776,0.52393211,2990.2,2990.1,0.5001]
[1764253255863,0.52393211,2990.2,2990.1,3.84446975]
[1764253255864,0.31093211,2990.2,2990.1,3.84446975]
[1764253256027,0.52393211,2990.2,2990.1,5.01794424]
[1764253256236,0.31093211,2990.2,2990.1,5.01794424]
[1764253257059,0.31093211,2990.2,2990.1,1.67357449]
[1764253257528,0.78283211,2990.2,2990.1,0.001]
[1764253259429,4.12709001,2990.2,2990.1,0.001]
[1764253259862,0.78283211,2990.2,2990.1,0.001]
[1764253262763,1.26143211,2990.2,2990.1,0.001]
[1764253263274,4.60569001,2990.2,2990.1,0.001]
[1764253263873,5.52197461,2990.2,2990.1,0.001]
[1764253264437,5.42197461,2990.2,2990.1,0.001]
[1764253265244,1.47443211,2990.2,2990.1,0.001]
[1764253265570,4.81869001,2990.2,2990.1,0.001]
[1764253267162,1.47443211,2990.2,2990.1,0.001]
[1764253267353,0.99583211,2990.2,2990.1,0.001]
[1764253267556,4.81869001,2990.2,2990.1,0.001]
[1764253267739,5.63497423,2990.2,2990.1,0.001]
[1764253267939,5.73497423,2990.2,2990.1,0.001]
[1764253268137,6.36056834,2990.2,2990.1,0.001]
[1764253268333,6.46056834,2990.2,2990.1,0.001]
[1764253268571,6.36056834,2990.2,2990.1,0.001]
[1764253268771,6.46219071,2990.2,2990.1,0.001]
[1764253269266,6.36219071,2990.2,2990.1,0.001]
[1764253270048,6.36419071,2990.2,2990.1,0.001]
[1764253270969,5.88559071,2990.2,2990.1,0.001]
[1764253271168,1.25214859,2990.2,2990.1,0.4876]
[1764253271864,4.59640649,2990.2,2990.1,0.001]
[1764253272071,5.09600649,2990.2,2990.1,0.001]
[1764253272243,4.78345201,2990.2,2990.1,0.001]
[1764253272444,1.43839411,2990.2,2990.1,0.001]
[1764253272640,0.93879411,2990.2,2990.1,0.4862]
[1764253272975,0.93879411,2990.2,2990.1,0.001]
[1764253272976,4.78265201,2990.2,2990.1,0.001]
[1764253273271,1.75100436,2990.2,2990.1,0.001]
[1764253273461,1.43839411,2990.2,2990.1,0.001]
[1764253273770,0.93879411,2990.2,2990.1,0.001]
[1764253273972,1.25139903,2990.2,2990.1,0.001]
[1764253274142,4.59565693,2990.2,2990.1,0.001]
[1764253274647,5.57425693,2990.2,2990.1,0.001]
[1764253275172,6.46609826,2990.2,2990.1,0.001]
[1764253275338,6.56609826,2990.2,2990.1,0.001]
[1764253275542,7.6918651,2990.2,2990.1,0.001]
[1764253275758,7.5918651,2990.2,2990.1,0.001]
[1764253275960,7.6918651,2990.2,2990.1,0.001]
[1764253276171,7.5918651,2990.2,2990.1,0.001]
[1764253276473,7.6918651,2990.2,2990.1,0.001]
[1764253279469,7.82586777,2990.2,2990.1,0.001]
[1764253280943,8.72130769,2990.2,2990.1,0.001]
[1764253281146,7.82586777,2990.2,2990.1,0.001]
[1764253282755,8.72130769,2990.2,2990.1,0.001]
[1764253284267,7.82586777,2990.2,2990.1,0.001]
[1764253284772,8.72130769,2990.2,2990.1,0.001]
[1764253285174,0.076,2990.1,2989.9,0.001]
[1764253285528,1.53359903,2990.0,2989.9,0.001]
[1764253285686,0.31260492,2990.0,2989.9,0.001]
[1764253285854,0.52460492,2990.0,2989.9,0.9764]
[1764253286057,0.31260492,2990.0,2989.9,0.9764]
[1764253286354,0.52460492,2990.0,2989.9,1.40851568]
[1764253286581,0.52460492,2990.0,2989.9,0.9764]
[1764253286779,0.52460492,2990.0,2989.9,4.32099346]
[1764253286975,0.52460492,2990.0,2989.9,0.9764]
[1764253287178,0.31260492,2990.0,2989.9,0.9764]
[1764253287374,0.52460492,2990.0,2989.9,0.9764]
[1764253287758,0.52460492,2990.0,2989.9,4.32099346]
[1764253288988,0.31260492,2990.0,2989.9,4.32099346]
[1764253289190,0.52460492,2990.0,2989.9,0.9764]
[1764253289688,0.52460492,2990.0,2989.9,0.4862]
[1764253289879,0.52460492,2990.0,2989.9,0.9764]
[1764253290187,0.52460492,2990.0,2989.9,1.40850969]
[1764253290387,0.52460492,2990.0,2989.9,0.4862]
[1764253291790,4.36868652,2990.0,2989.9,0.001]
[1764253295103,4.84768652,2990.0,2989.9,0.001]
[1764253295892,0.52460492,2990.0,2989.9,0.4862]
[1764253296093,4.36868652,2990.0,2989.9,0.001]
[1764253296298,4.36788652,2990.0,2989.9,0.001]
[1764253296595,6.34390712,2990.0,2989.9,0.001]
[1764253296897,7.65337967,2990.0,2989.9,0.001]